bitfinex/quotes_BTCUSD_20251016
["timestamp","ask_amount","ask_price","bid_price","bid_amount"]
[1760644462221,0.18413475,108620.0,108600.0,0.19332905]
[1760644462418,0.19328117,108650.0,108610.0,1.04178347]
[1760644462634,0.18409638,108640.0,108620.0,0.96997118]
[1760644462851,0.1841112,108630.0,108620.0,0.18361012]
[1760644464391,0.1841112,108630.0,108620.0,0.08969012]
[1760644465279,0.97187681,108630.0,108620.0,0.08969012]
[1760644465524,0.97187681,108630.0,108600.0,0.00015006]
[1760644465525,0.1841451,108610.0,108600.0,0.00015006]
[1760644465749,0.1841451,108610.0,108600.0,0.08984018]
[1760644466197,0.1841451,108610.0,108600.0,0.10825638]
[1760644466405,0.20396074,108620.0,108600.0,1.0603579]
[1760644466406,0.20394959,108620.0,108600.0,1.0603579]
[1760644466667,0.18412815,108620.0,108610.0,0.27383522]
[1760644467058,0.18412815,108620.0,108610.0,0.08969012]
[1760644467654,0.20398794,108620.0,108610.0,0.08969012]
[1760644469766,0.1841451,108610.0,108600.0,0.00015006]
[1760644469980,0.2288382,108610.0,108600.0,0.00015006]
[1760644470195,0.20400489,108610.0,108600.0,0.00015006]
[1760644471870,0.20400489,108610.0,108600.0,0.08984018]
[1760644473159,0.1841451,108610.0,108600.0,0.08984018]
[1760644473345,0.20399954,108610.0,108600.0,0.08984018]
[1760644474446,0.20399954,108610.0,108600.0,0.00015006]
[1760644475291,0.97194779,108610.0,108600.0,0.00015006]
[1760644475497,1.3367811,108610.0,108600.0,0.00015006]
[1760644475708,1.36954452,108610.0,108600.0,0.00015006]
[1760644476362,1.27513532,108610.0,108600.0,0.00015006]
[1760644477946,1.39267629,108610.0,108600.0,0.00015006]
[1760644478140,1.40464579,108610.0,108600.0,1e-08]
[1760644478369,1.45464391,108610.0,108600.0,1e-08]
[1760644478599,1.36496183,108610.0,108600.0,1e-08]
[1760644479320,0.6060415,108610.0,108600.0,1e-08]
[1760644479552,1.37398975,108610.0,108600.0,1e-08]
[1760644479756,1.35675505,108610.0,108600.0,1e-08]
[1760644479980,1.41016372,108610.0,108600.0,1e-08]
[1760644480202,1.53260922,108610.0,108600.0,1e-08]
[1760644480420,1.35675505,108610.0,108600.0,1e-08]
[1760644481291,1.33192174,108610.0,108600.0,1e-08]
[1760644481495,1.35775505,108610.0,108600.0,1e-08]
[1760644481613,1.33292174,108610.0,108600.0,1e-08]
[1760644482466,1.33192174,108610.0,108600.0,1e-08]
[1760644482862,1.41280754,108610.0,108600.0,1e-08]
[1760644483116,0.18419436,108590.0,108570.0,0.18841994]
[1760644483351,0.18419436,108590.0,108560.0,1.06651804]
[1760644483352,0.18434392,108590.0,108580.0,0.08969012]
[1760644484214,0.18421295,108570.0,108560.0,0.0004]
[1760644484451,0.18421295,108570.0,108560.0,0.09009012]
[1760644488548,0.18421295,108570.0,108560.0,0.0004]
[1760644488745,1.38184328,108570.0,108560.0,0.0004]
[1760644488946,0.63370368,108570.0,108560.0,0.0004]
[1760644489371,0.18421295,108570.0,108560.0,0.0004]
[1760644490380,0.18421295,108570.0,108560.0,0.27431955]
[1760644490587,0.18421295,108570.0,108560.0,0.27431598]
[1760644490786,0.18421295,108570.0,108560.0,0.09009012]
[1760644491314,0.18421134,108580.0,108560.0,0.29274302]
[1760644491315,0.18419598,108580.0,108560.0,0.29274302]
[1760644491520,0.18419598,108580.0,108570.0,0.08969012]
[1760644495155,0.18421295,108570.0,108560.0,0.0004]
[1760644495356,0.18421295,108570.0,108560.0,0.09009012]
[1760644495785,0.18419598,108580.0,108560.0,0.10851311]
[1760644496026,0.18421295,108570.0,108560.0,0.0004]
[1760644496237,0.18421295,108570.0,108560.0,0.09009012]
[1760644496807,0.18421295,108570.0,108560.0,0.09109012]
[1760644500465,0.71803775,108570.0,108560.0,1e-08]
[1760644500704,0.56105384,108570.0,108560.0,1e-08]
[1760644501160,0.18422991,108560.0,108550.0,0.0504]
[1760644501379,0.18421295,108570.0,108550.0,0.14009012]
[1760644501588,0.18421295,108570.0,108560.0,0.18422991]
[1760644501793,0.70893351,108590.0,108560.0,0.18422991]
[1760644501794,0.2119496,108590.0,108560.0,0.87395543]
[1760644501999,0.18421295,108570.0,108560.0,0.87395543]
[1760644502232,0.18421295,108570.0,108560.0,0.86474394]
[1760644502444,0.18419598,108580.0,108560.0,0.36776003]
[1760644502664,0.00014956,108590.0,108580.0,0.18419598]
[1760644502868,0.00014956,108590.0,108580.0,0.86471001]
[1760644502993,0.18432858,108590.0,108580.0,0.3677261]
[1760644503194,0.00014956,108590.0,108580.0,0.86471001]
[1760644503401,0.00014956,108590.0,108580.0,1.20471001]
[1760644503637,0.00014956,108590.0,108580.0,6.24089229]
[1760644504056,0.00014956,108590.0,108580.0,0.65006838]
[1760644504300,0.00014956,108590.0,108580.0,0.4658724]
[1760644504536,0.00014956,108590.0,108580.0,1.20475001]
[1760644504733,0.00014956,108590.0,108580.0,1.24093229]
[1760644504932,0.18432858,108590.0,108580.0,0.52357012]
[1760644505170,0.18432858,108590.0,108580.0,0.08969012]
[1760644505383,0.18432858,108590.0,108580.0,0.18457012]
[1760644505582,0.18432858,108590.0,108580.0,0.18357012]
[1760644505800,0.18432858,108590.0,108580.0,0.09069012]
[1760644506210,0.18432858,108590.0,108580.0,0.08969012]
[1760644506426,0.18432858,108590.0,108580.0,0.10810971]
[1760644506630,0.18432858,108590.0,108580.0,0.08969012]
[1760644506840,0.68131249,108590.0,108580.0,0.08969012]
[1760644507042,0.18421295,108570.0,108560.0,0.43388]
[1760644507236,0.18421082,108580.0,108560.0,0.70780003]
[1760644507463,0.18421082,108580.0,108570.0,0.08969012]
[1760644507681,0.18422991,108560.0,108550.0,0.0504]
[1760644508180,0.68121382,108560.0,108550.0,0.0504]
[1760644508410,0.18422991,108560.0,108550.0,0.0504]
[1760644508629,0.18422991,108560.0,108550.0,0.14009012]
[1760644508834,0.18422782,108570.0,108550.0,0.14009012]
[1760644509064,0.18422991,108560.0,108550.0,0.32533701]
[1760644509260,0.1841968,108580.0,108560.0,0.18422991]
[1760644509440,0.18419785,108580.0,108570.0,0.08969012]
[1760644509645,0.18419598,108580.0,108570.0,0.10811141]
[1760644509879,0.18419598,108580.0,108570.0,0.08969012]
[1760644510297,0.19353753,108590.0,108570.0,0.27390307]
[1760644510501,0.18419598,108580.0,108570.0,0.27390307]
[1760644510912,0.18419598,108580.0,108570.0,0.08969012]
[1760644511356,0.71803235,108580.0,108570.0,0.08969012]
[1760644511559,0.22104844,108580.0,108570.0,0.08969012]
[1760644511978,0.18422991,108560.0,108550.0,0.0504]
[1760644512224,0.68121382,108560.0,108550.0,0.0504]
[1760644513887,0.18422991,108560.0,108550.0,0.0504]
[1760644514092,0.68121382,108560.0,108550.0,0.0504]
[1760644514304,0.71805811,108560.0,108550.0,0.0504]
[1760644515551,0.18422991,108560.0,108550.0,0.0504]
[1760644515766,0.68121382,108560.0,108550.0,0.0504]
[1760644516805,0.18422991,108560.0,108550.0,0.0504]
[1760644517466,0.68121382,108560.0,108550.0,0.0504]
[1760644517685,1.02121382,108560.0,108550.0,0.0504]
[1760644517903,1.1108959,108560.0,108550.0,0.0504]
[1760644518107,0.18422991,108560.0,108550.0,0.0504]
[1760644518753,0.68121382,108560.0,108550.0,0.0504]
[1760644519416,1.02121382,108560.0,108550.0,0.0504]
[1760644519635,1.02121382,108560.0,108530.0,0.0004]
[1760644519636,0.18426386,108540.0,108530.0,0.0004]
[1760644519909,0.68124777,108540.0,108530.0,0.0004]
[1760644520111,0.76779875,108540.0,108530.0,0.0004]
[1760644520363,0.68124777,108540.0,108530.0,0.0004]
[1760644520806,0.68124777,108540.0,108530.0,0.00090054]
[1760644521478,1.02124777,108540.0,108530.0,0.00090054]
[1760644521912,1.02124777,108540.0,108530.0,1e-08]
[1760644521913,1.16693271,108540.0,108530.0,1e-08]
[1760644522578,1.16793271,108540.0,108530.0,1e-08]
[1760644522796,1.25761479,108540.0,108530.0,1e-08]
[1760644523235,1.20161997,108540.0,108530.0,1e-08]
[1760644523453,0.77193789,108540.0,108530.0,1e-08]
[1760644523688,0.18428084,108530.0,108520.0,0.04540001]
[1760644523876,0.18428084,108530.0,108520.0,0.04555011]
[1760644524117,0.68126475,108530.0,108520.0,0.04555011]
[1760644524343,1.20063695,108530.0,108520.0,0.04555011]
[1760644524573,1.02126475,108530.0,108520.0,0.04555011]
[1760644524788,0.68126475,108530.0,108520.0,0.04555011]
[1760644524993,0.18428084,108530.0,108520.0,0.04555011]
[1760644525137,0.68126475,108530.0,108520.0,0.04555011]
[1760644525340,0.18428084,108530.0,108520.0,0.04555011]
[1760644526042,0.74308742,108530.0,108520.0,0.04555011]
[1760644527136,0.55880658,108530.0,108520.0,0.04555011]
[1760644527343,0.68126475,108530.0,108520.0,0.04555011]
[1760644529569,0.18428084,108530.0,108520.0,0.04555011]
[1760644529774,0.68126475,108530.0,108520.0,0.04555011]
[1760644529980,0.18428084,108530.0,108520.0,0.04555011]
[1760644530351,0.68126475,108530.0,108520.0,0.04555011]
[1760644530539,0.76781761,108530.0,108520.0,0.04555011]
[1760644530744,0.52426386,108540.0,108530.0,99.23218239]
[1760644530986,1.02124777,108540.0,108530.0,99.23218239]
[1760644533275,1.02224777,108540.0,108530.0,99.23218239]
[1760644535130,0.52526386,108540.0,108530.0,99.23218239]
[1760644535337,1.03706924,108540.0,108530.0,99.23218239]
[1760644535562,0.18526386,108540.0,108530.0,99.23218239]
[1760644535982,0.001,108540.0,108530.0,100.00313726]
[1760644536403,0.14060745,108560.0,108530.0,99.50615335]
[1760644536608,0.18427708,108550.0,108530.0,99.32187251]
[1760644536812,0.18426386,108540.0,108530.0,99.41587251]
[1760644537021,0.18427708,108550.0,108530.0,99.41587251]
[1760644537222,0.18426386,108540.0,108530.0,100.00744516]
[1760644537440,0.18426386,108540.0,108530.0,99.81985642]
[1760644537680,0.18426386,108540.0,108530.0,99.91385642]
[1760644538314,0.18426386,108540.0,108530.0,100.09813726]
[1760644539001,0.18426386,108540.0,108530.0,99.91385642]
[1760644539224,0.18426386,108540.0,108530.0,100.09813726]
[1760644540164,0.18426386,108540.0,108530.0,99.91385642]
[1760644540377,0.18426386,108540.0,108530.0,99.32287251]
[1760644540591,0.22111501,108540.0,108530.0,99.32287251]
[1760644540811,0.18426386,108540.0,108530.0,99.32287251]
[1760644541247,0.18426386,108540.0,108530.0,99.23318239]
[1760644542041,0.18426386,108540.0,108530.0,99.23218239]
[1760644542439,0.68124777,108540.0,108530.0,99.23218239]
[1760644542847,1.02124777,108540.0,108530.0,99.23218239]
[1760644543049,1.22045033,108540.0,108530.0,99.23218239]
[1760644544063,1.13076825,108540.0,108530.0,99.23218239]
[1760644544460,1.16695053,108540.0,108530.0,99.23218239]
[1760644544660,5.25090462,108540.0,108530.0,99.23218239]
[1760644544861,5.74788853,108540.0,108530.0,99.23218239]
[1760644545352,5.78985027,108540.0,108530.0,99.23218239]
[1760644545535,5.91605992,108540.0,108530.0,99.23218239]
[1760644545688,5.887537,108540.0,108530.0,99.23218239]
[1760644545891,5.91228184,108540.0,108530.0,99.23218239]
[1760644546092,5.93861025,108540.0,108530.0,99.23218239]
[1760644546497,5.96428381,108540.0,108530.0,99.23218239]
[1760644546718,5.8887553,108540.0,108530.0,99.23218239]
[1760644546910,5.39177139,108540.0,108530.0,99.23218239]
[1760644547111,5.91349461,108540.0,108530.0,99.23218239]
[1760644547310,5.91508371,108540.0,108530.0,99.23218239]
[1760644547684,5.8887553,108540.0,108530.0,99.23218239]
[1760644547894,0.69570731,108540.0,108530.0,99.23218239]
[1760644548096,1.19269122,108540.0,108530.0,99.23218239]
[1760644548308,1.16795053,108540.0,108530.0,99.23218239]
[1760644548523,0.54509422,108540.0,108530.0,99.23218239]
[1760644549135,0.18526386,108540.0,108530.0,99.23218239]
[1760644549998,0.18426386,108540.0,108530.0,99.23218239]
[1760644551271,0.18426386,108540.0,108530.0,99.32610239]
[1760644551473,0.18426386,108540.0,108530.0,99.51038323]
[1760644551690,0.18424767,108550.0,108530.0,99.51038323]
[1760644551901,0.18424767,108550.0,108540.0,0.68059403]
[1760644551902,0.18424689,108550.0,108540.0,0.68059403]
[1760644552111,0.18424689,108550.0,108540.0,0.18361012]
[1760644553395,0.18424689,108550.0,108540.0,0.08969012]
[1760644553613,0.18424689,108550.0,108530.0,99.23228968]
[1760644553614,0.18426386,108540.0,108530.0,99.23228968]
[1760644554793,0.18426386,108540.0,108530.0,99.23218239]
[1760644554794,0.18415658,108540.0,108530.0,99.23218239]
[1760644555399,0.18426386,108540.0,108530.0,99.81885642]
[1760644555602,0.21185153,108560.0,108530.0,100.09705726]
[1760644555814,0.18425677,108550.0,108540.0,0.08969012]
[1760644556801,0.18425677,108550.0,108540.0,0.18361012]
[1760644558252,0.18426386,108540.0,108530.0,99.23218239]
[1760644558890,0.56111592,108540.0,108530.0,99.23218239]
[1760644559090,1.42011875,108540.0,108530.0,99.23218239]
[1760644559296,1.43989727,108540.0,108530.0,99.23218239]
[1760644559544,6.08175824,108540.0,108530.0,99.23218239]
[1760644559951,6.11473996,108540.0,108530.0,99.23218239]
[1760644560190,6.13190654,108540.0,108530.0,99.23218239]
[1760644560415,6.15636595,108540.0,108530.0,99.23218239]
[1760644560684,6.18269436,108540.0,108530.0,99.23218239]
[1760644561113,6.19103231,108540.0,108530.0,99.23218239]
[1760644561324,6.19936641,108540.0,108530.0,99.23218239]
[1760644561529,6.16638469,108540.0,108530.0,99.23218239]
[1760644561855,6.18183601,108540.0,108530.0,99.23218239]
[1760644562262,5.4115233,108540.0,108530.0,99.23218239]
[1760644562590,6.18011988,108540.0,108530.0,99.23218239]
[1760644563273,6.18011988,108540.0,108530.0,98.05493014]
[1760644563274,6.24635352,108540.0,108530.0,98.05493014]
[1760644563450,5.49947557,108540.0,108530.0,97.99513723]
[1760644563655,6.26675653,108540.0,108530.0,97.99513723]
[1760644564074,6.26775653,108540.0,108530.0,97.99513723]
[1760644564271,6.25851765,108540.0,108530.0,97.99513723]
[1760644564498,6.23485823,108540.0,108530.0,97.99513723]
[1760644564706,6.26775653,108540.0,108530.0,97.99513723]
[1760644564901,6.23385823,108540.0,108530.0,97.99513723]
[1760644565112,6.26051444,108540.0,108530.0,97.99513723]
[1760644565517,6.11525606,108540.0,108530.0,97.99513723]
[1760644565759,5.77525606,108540.0,108530.0,97.99513723]
[1760644565958,5.75059985,108540.0,108530.0,97.99513723]
[1760644566275,6.1256675,108540.0,108530.0,97.99513723]
[1760644566483,6.14280247,108540.0,108530.0,97.99513723]
[1760644566703,6.14080162,108540.0,108530.0,97.99513723]
[1760644566903,6.14180162,108540.0,108530.0,97.99513723]
[1760644567930,6.09980635,108540.0,108530.0,97.99513723]
[1760644568134,5.73246887,108540.0,108530.0,97.99513723]
[1760644568323,6.09898152,108540.0,108530.0,97.99513723]
[1760644568519,6.07246887,108540.0,108530.0,97.99513723]
[1760644568728,4.91252256,108540.0,108530.0,97.99513723]
[1760644568924,1.04426669,108540.0,108530.0,97.99513723]
[1760644569347,1.08044897,108540.0,108530.0,97.99513723]
[1760644569557,5.66138697,108540.0,108530.0,97.99513723]
[1760644569770,6.02112224,108540.0,108530.0,97.99513723]
[1760644570414,1.43918424,108540.0,108530.0,97.99513723]
[1760644570535,6.10980432,108540.0,108530.0,97.99513723]
[1760644570741,6.09106905,108540.0,108530.0,97.99513723]
[1760644570945,0.61495398,108540.0,108530.0,97.99513723]
[1760644571143,1.38426669,108540.0,108530.0,97.99513723]
[1760644571362,1.42044897,108540.0,108530.0,97.99513723]
[1760644571771,1.08044897,108540.0,108530.0,97.97613723]
[1760644571973,1.07944897,108540.0,108530.0,97.97613723]
[1760644572197,1.41944897,108540.0,108530.0,97.97613723]
[1760644572414,1.50913105,108540.0,108530.0,97.97613723]
[1760644572621,6.09006905,108540.0,108530.0,97.97613723]
[1760644572867,6.10981036,108540.0,108530.0,97.97613723]
[1760644573315,6.20680036,108540.0,108530.0,97.97613723]
[1760644573495,6.2239317,108540.0,108530.0,96.9747174]
[1760644573761,6.23838354,108540.0,108530.0,96.9747174]
[1760644573993,6.2905524,108540.0,108530.0,96.96446997]
[1760644574156,6.31441355,108540.0,108530.0,96.96446997]
[1760644574315,6.31541355,108540.0,108530.0,96.96446997]
[1760644574726,6.31441355,108540.0,108530.0,96.96446997]
[1760644574932,6.31641355,108540.0,108530.0,96.96446997]
[1760644576063,6.2915524,108540.0,108530.0,96.96446997]
[1760644576256,6.29806431,108540.0,108530.0,96.96446997]
[1760644576413,6.29175734,108540.0,108530.0,96.96446997]
[1760644577125,6.24038354,108540.0,108530.0,96.96446997]
[1760644577360,5.7862622,108540.0,108530.0,96.96446997]
[1760644577577,5.645946,108540.0,108530.0,96.96446997]
[1760644577802,5.66238697,108540.0,108530.0,96.96446997]
[1760644577945,5.62620469,108540.0,108530.0,96.96446997]
[1760644578154,5.68210953,108540.0,108530.0,96.96446997]
[1760644578366,5.76979161,108540.0,108530.0,96.96446997]
[1760644578570,6.10979161,108540.0,108530.0,96.96446997]
[1760644578776,6.09006905,108540.0,108530.0,96.96446997]
[1760644578976,6.11079318,108540.0,108530.0,96.96446997]
[1760644579505,6.127915,108540.0,108530.0,95.90988447]
[1760644579736,6.15563501,108540.0,108530.0,95.90988447]
[1760644580142,6.18214766,108540.0,108530.0,95.90988447]
[1760644580350,6.13851319,108540.0,108530.0,95.90988447]
[1760644580642,6.04783111,108540.0,108530.0,95.90988447]
[1760644580880,6.04883111,108540.0,108530.0,95.90988447]
[1760644581083,5.19489198,108540.0,108530.0,95.90988447]
[1760644581284,5.98394508,108540.0,108530.0,95.90988447]
[1760644581460,6.11080944,108540.0,108530.0,95.90988447]
[1760644581619,6.10980944,108540.0,108530.0,95.90988447]
[1760644581982,1.42044897,108540.0,108530.0,95.90988447]
[1760644583052,1.41944897,108540.0,108530.0,95.90988447]
[1760644583232,1.4391974,108540.0,108530.0,95.90988447]
[1760644584218,6.0201354,108540.0,108530.0,95.90988447]
[1760644584424,1.4391974,108540.0,108530.0,95.90988447]
[1760644584712,1.52887948,108540.0,108530.0,95.90988447]
[1760644584907,6.10981748,108540.0,108530.0,95.90988447]
[1760644585099,6.13633013,108540.0,108530.0,95.90988447]
[1760644585300,5.35765809,108540.0,108530.0,95.90988447]
[1760644585498,0.75956677,108540.0,108530.0,95.90988447]
[1760644585657,1.52887948,108540.0,108530.0,95.90988447]
[1760644586009,1.41944897,108540.0,108530.0,95.90988447]
[1760644586444,1.44022294,108540.0,108530.0,95.90988447]
[1760644586662,1.43922294,108540.0,108530.0,95.90988447]
[1760644588665,1.43922294,108540.0,108530.0,95.91033064]
[1760644589508,1.45644097,108540.0,108530.0,95.91033064]
[1760644589712,1.46387662,108540.0,108530.0,95.91033064]
[1760644589938,1.5535587,108540.0,108530.0,95.91033064]
[1760644590358,1.57077266,108540.0,108530.0,95.91033064]
[1760644591484,6.15901858,108540.0,108530.0,94.78072156]
[1760644591690,6.1672632,108540.0,108530.0,94.73846942]
[1760644591896,6.1343649,108540.0,108530.0,94.69343504]
[1760644592105,6.21007765,108540.0,108530.0,94.52594347]
[1760644592313,6.22598844,108540.0,108530.0,93.25218121]
[1760644592561,6.16738946,108540.0,108530.0,93.2007267]
[1760644592773,6.17390137,108540.0,108530.0,93.05606219]
[1760644592986,6.1952595,108540.0,108530.0,92.13286513]
[1760644593189,6.0992695,108540.0,108530.0,91.88888741]
[1760644593422,6.24651496,108540.0,108530.0,90.88120851]
[1760644593652,6.09829631,108540.0,108530.0,90.77693522]
[1760644593878,6.09929631,108540.0,108530.0,90.7492444]
[1760644594106,6.17577759,108540.0,108530.0,90.72155358]
[1760644594333,6.10440743,108540.0,108530.0,90.72155358]
[1760644594554,6.05285614,108540.0,108530.0,90.72155358]
[1760644594774,5.6225426,108540.0,108530.0,90.72155358]
[1760644595046,6.03171812,108540.0,108530.0,90.72155358]
[1760644595930,6.03071812,108540.0,108530.0,90.72155358]
[1760644596183,6.03271812,108540.0,108530.0,90.72155358]
[1760644596416,6.03071812,108540.0,108530.0,90.72155358]
[1760644596833,6.04821327,108540.0,108530.0,90.72155358]
[1760644597034,6.03174095,108540.0,108530.0,90.72155358]
[1760644597466,6.03074095,108540.0,108530.0,90.72155358]
[1760644597941,6.03274095,108540.0,108530.0,90.72155358]
[1760644599038,6.03074095,108540.0,108530.0,90.72155358]
[1760644599461,6.03174095,108540.0,108530.0,90.72155358]
[1760644599660,6.03074095,108540.0,108530.0,90.72155358]
[1760644599985,6.03274095,108540.0,108530.0,90.72155358]
[1760644600892,5.99972488,108540.0,108530.0,90.72155358]
[1760644601103,5.98251092,108540.0,108530.0,90.72155358]
[1760644601321,6.01552855,108540.0,108530.0,89.80379705]
[1760644601528,5.96805649,108540.0,108530.0,89.80379705]
[1760644601743,6.04269576,108540.0,108530.0,89.80379705]
[1760644602134,5.22189466,108540.0,108530.0,88.72454224]
[1760644602280,6.04069576,108540.0,108530.0,88.72454224]
[1760644602483,6.05989855,108540.0,108530.0,88.72454224]
[1760644602698,6.05182436,108540.0,108530.0,88.72454224]
[1760644602912,6.08201124,108540.0,108530.0,88.72454224]
[1760644603116,6.17900124,108540.0,108530.0,88.72454224]
[1760644603377,6.12951285,108540.0,108530.0,87.80199209]
[1760644603580,6.15724131,108540.0,108530.0,87.80199209]
[1760644604022,6.2067297,108540.0,108530.0,87.80199209]
[1760644604240,6.2067297,108540.0,108530.0,86.8203399]
[1760644604367,6.2748949,108540.0,108530.0,86.79263931]
[1760644604565,6.2748949,108540.0,108530.0,86.76493872]
[1760644604772,6.20054536,108540.0,108530.0,86.76493872]
[1760644604961,6.12126116,108540.0,108530.0,86.76493872]
[1760644605162,4.96173429,108540.0,108530.0,86.76493872]
[1760644605372,5.7558092,108540.0,108530.0,86.76493872]
[1760644605623,5.74825105,108540.0,108530.0,86.76493872]
[1760644605826,5.79199148,108540.0,108530.0,86.76493872]
[1760644605971,6.154414,108540.0,108530.0,86.76493872]
[1760644606170,6.16477966,108540.0,108530.0,86.76493872]
[1760644606373,6.13824316,108540.0,108530.0,86.76493872]
[1760644606596,6.15644866,108540.0,108530.0,86.76493872]
[1760644606811,6.14099433,108540.0,108530.0,86.76493872]
[1760644607015,6.14299433,108540.0,108530.0,86.76493872]
[1760644608171,6.10998045,108540.0,108530.0,86.76493872]
[1760644608331,6.10798045,108540.0,108530.0,86.76493872]
[1760644608576,5.79475134,108540.0,108530.0,86.76493872]
[1760644608711,6.13475134,108540.0,108530.0,86.76493872]
[1760644609118,5.79475134,108540.0,108530.0,86.76493872]
[1760644609315,5.79275134,108540.0,108530.0,86.76493872]
[1760644609523,6.13275134,108540.0,108530.0,86.76493872]
[1760644609724,6.13375134,108540.0,108530.0,86.76493872]
[1760644610149,6.14820374,108540.0,108530.0,86.76493872]
[1760644611143,6.12343285,108540.0,108530.0,86.76493872]
[1760644611353,6.14820668,108540.0,108530.0,86.76493872]
[1760644612072,6.12343285,108540.0,108530.0,86.76493872]
[1760644612270,6.15644673,108540.0,108530.0,86.76493872]
[1760644612483,6.12343285,108540.0,108530.0,86.76493872]
[1760644613083,6.15644673,108540.0,108530.0,86.76493872]
[1760644613274,6.12343285,108540.0,108530.0,86.76493872]
[1760644613478,6.15644673,108540.0,108530.0,86.76493872]
[1760644614170,6.12343285,108540.0,108530.0,86.76493872]
[1760644614375,6.17292124,108540.0,108530.0,86.76493872]
[1760644615588,6.17293794,108540.0,108530.0,86.76493872]
[1760644615982,6.13675566,108540.0,108530.0,86.76493872]
[1760644616183,6.17293794,108540.0,108530.0,86.76493872]
[1760644617410,6.20602177,108540.0,108530.0,86.76493872]
[1760644618234,6.17293794,108540.0,108530.0,86.76493872]
[1760644618574,6.20603726,108540.0,108530.0,86.76493872]
[1760644618933,6.17293794,108540.0,108530.0,86.76493872]
[1760644619513,6.36330569,108540.0,108530.0,86.76493872]
[1760644619713,6.39948797,108540.0,108530.0,86.76493872]
[1760644620402,5.9015566,108540.0,108530.0,86.76493872]
[1760644620875,6.39848797,108540.0,108530.0,86.76493872]
[1760644621243,6.40048797,108540.0,108530.0,86.76493872]
[1760644621447,6.39848797,108540.0,108530.0,86.76493872]
[1760644621840,6.38415211,108540.0,108530.0,85.73109636]
[1760644622044,6.38403557,108540.0,108530.0,85.73109636]
[1760644622396,6.38603557,108540.0,108530.0,85.73109636]
[1760644622625,6.36389985,108540.0,108530.0,85.73109636]
[1760644622840,6.41361352,108540.0,108530.0,84.22771746]
[1760644623037,6.36389985,108540.0,108530.0,84.2000175]
[1760644623219,6.36389985,108540.0,108530.0,84.17231754]
[1760644623720,6.38627131,108540.0,108530.0,84.17231754]
[1760644623934,6.33454718,108540.0,108530.0,84.17231754]
[1760644624219,6.36971192,108540.0,108530.0,84.17231754]
[1760644624439,6.27272192,108540.0,108530.0,84.17231754]
[1760644624645,5.39660827,108540.0,108530.0,84.17231754]
[1760644624845,5.36544353,108540.0,108530.0,84.17231754]
[1760644625093,5.74162581,108540.0,108530.0,84.17231754]
[1760644625297,6.28717467,108540.0,108530.0,84.17231754]
[1760644625723,6.28517467,108540.0,108530.0,84.17231754]
[1760644625927,6.38316467,108540.0,108530.0,84.17231754]
[1760644626127,6.39972406,108540.0,108530.0,84.17231754]
[1760644626365,6.34999993,108540.0,108530.0,84.17231754]
[1760644626804,6.34999993,108540.0,108530.0,83.29338426]
[1760644627003,6.36004381,108540.0,108530.0,83.29338426]
[1760644627156,6.3763526,108540.0,108530.0,83.29338426]
[1760644627363,6.3783526,108540.0,108530.0,83.29338426]
[1760644627564,6.34899993,108540.0,108530.0,83.29338426]
[1760644627770,6.38216783,108540.0,108530.0,83.29338426]
[1760644627989,5.73661143,108540.0,108530.0,83.29338426]
[1760644628193,5.8965428,108540.0,108530.0,83.29338426]
[1760644628515,6.27272508,108540.0,108530.0,83.29338426]
[1760644628965,6.27072508,108540.0,108530.0,83.29338426]
[1760644630221,6.27272508,108540.0,108530.0,83.29338426]
[1760644630428,6.27072508,108540.0,108530.0,83.29338426]
[1760644630842,6.27272508,108540.0,108530.0,83.29338426]
[1760644631047,6.27072508,108540.0,108530.0,83.29338426]
[1760644631254,6.28517858,108540.0,108530.0,83.29338426]
[1760644631460,6.28717858,108540.0,108530.0,83.29338426]
[1760644632807,6.30373481,108540.0,108530.0,83.29338426]
[1760644633185,6.30373481,108540.0,108530.0,82.38479529]
[1760644633186,6.39872481,108540.0,108530.0,82.38479529]
[1760644633386,6.44943561,108540.0,108530.0,81.45579886]
[1760644633592,1.88055638,108540.0,108530.0,74.35549108]
[1760644633802,1.97648734,108540.0,108530.0,68.31372836]
[1760644634006,1.97648734,108540.0,108530.0,59.717982]
[1760644634220,6.88112895,108540.0,108530.0,56.19257324]
[1760644634457,6.88412895,108540.0,108530.0,55.10445838]
[1760644634575,6.9420303,108540.0,108530.0,53.18386449]
[1760644634779,6.9390303,108540.0,108530.0,49.76742198]
[1760644634982,6.86023943,108540.0,108530.0,46.52008975]
[1760644635227,6.80480943,108540.0,108530.0,43.57730479]
[1760644635430,6.8876003,108540.0,108530.0,40.56950111]
[1760644635645,6.80480943,108540.0,108530.0,38.41683897]
[1760644635847,6.80480943,108540.0,108530.0,37.55777263]
[1760644636020,6.80480943,108540.0,108530.0,37.01357098]
[1760644636227,6.80080943,108540.0,108530.0,32.75210176]
[1760644636458,6.80080943,108540.0,108530.0,24.3149838]
[1760644636835,1.80817435,108540.0,108530.0,13.38005975]
[1760644637075,6.80817435,108540.0,108530.0,12.60878896]
[1760644637204,6.80817435,108540.0,108530.0,11.27259967]
[1760644637405,7.39096522,108540.0,108530.0,9.05630359]
[1760644637613,7.30817435,108540.0,108530.0,7.86523186]
[1760644637838,7.3081443,108540.0,108530.0,6.81856691]
[1760644638004,7.3041443,108540.0,108530.0,6.03474842]
[1760644638203,7.3081443,108540.0,108530.0,4.76733996]
[1760644638406,7.3906054,108540.0,108530.0,2.80819546]
[1760644638605,7.3081443,108540.0,108530.0,1.89932963]
[1760644638849,7.3081443,108540.0,108530.0,0.44460746]
[1760644639054,1.39434633,108450.0,108440.0,0.01839673]
[1760644639205,1.95405699,108450.0,108440.0,0.01839673]
[1760644639404,1.95405699,108450.0,108400.0,0.5167281]
[1760644639405,1.01818105,108440.0,108400.0,0.5167281]
[1760644639704,1.05517398,108440.0,108420.0,0.0004]
[1760644640939,0.8707402,108440.0,108420.0,0.49833137]
[1760644641140,0.85354805,108440.0,108420.0,0.49833137]
[1760644641343,1.03798183,108440.0,108420.0,0.49833137]
[1760644641532,0.85454805,108440.0,108420.0,0.0004]
[1760644641939,1.19454805,108440.0,108430.0,0.54793137]
[1760644642391,1.17474727,108440.0,108430.0,0.05]
[1760644642604,0.83474727,108440.0,108430.0,0.54793137]
[1760644642815,0.83374727,108440.0,108430.0,0.54793137]
[1760644643635,0.83374727,108440.0,108430.0,0.73238216]
[1760644643842,0.83374727,108440.0,108430.0,0.54793137]
[1760644644676,0.83374727,108440.0,108430.0,0.73238216]
[1760644644897,0.83374727,108440.0,108430.0,1.69618593]
[1760644645102,0.50004979,108450.0,108440.0,0.18443378]
[1760644645300,0.50004979,108450.0,108430.0,0.70032319]
[1760644645501,0.50004979,108450.0,108440.0,1.01430611]
[1760644645706,0.50004979,108450.0,108440.0,0.49793137]
[1760644645927,0.83379779,108450.0,108440.0,0.49793137]
[1760644646159,4.979e-05,108450.0,108440.0,0.49793137]
[1760644646388,0.833748,108440.0,108430.0,0.54793137]
[1760644649590,0.833748,108440.0,108430.0,0.05]
[1760644650276,0.833748,108440.0,108430.0,0.54793137]
[1760644650496,0.833748,108440.0,108430.0,0.05]
[1760644652404,1.37795425,108440.0,108430.0,0.05]